Body Name,Body,Service Level,Expense Type,Expense Code,Narrative,Date,Transaction Number,Amount,Capital and Revenue,Supplier Name,Supplier ID
South Ribble Council,http://statistics.data.gov.uk/doc/local-authority/30UN,Area 2 - Waste Transport/Eastern & Central Teams,External Contractors Charges,4570,Supply and fitting of 2 x hose reels and components in oil stores.,12/08/2020,0000458151,402.82,Revenue,A C HYDRAULIC & PNEUMATIC SERVICES LTD,00093062
South Ribble Council,http://statistics.data.gov.uk/doc/local-authority/30UN,Property Services,Rep & Maint Premises,2020,Please supply the skip going now & replacement . 2x 16yard skips. As per NAME REDACTED Total. 550.  Civic Centre,12/08/2020,0000458069,275.00,Revenue,ABLE SKIP HIRE LTD,00042495
South Ribble Council,http://statistics.data.gov.uk/doc/local-authority/30UN,Information Services,Peripherals,4241,5 x HP Laptops @ 349 each,28/08/2020,0000458482,"1,765.00",Revenue,ACS SYSTEMS UK LTD,00070166
South Ribble Council,http://statistics.data.gov.uk/doc/local-authority/30UN,Revenues Plus,Financial,4811,postoffice,19/08/2020,0000458226,665.50,Revenue,ALLPAY LTD,00122276
South Ribble Council,http://statistics.data.gov.uk/doc/local-authority/30UN,Revenues Plus,Financial,4811,paypoint trans,19/08/2020,0000458226,82.40,Revenue,ALLPAY LTD,00122276
South Ribble Council,http://statistics.data.gov.uk/doc/local-authority/30UN,Revenues Plus,Financial,4811,webconn,19/08/2020,0000458226,46.00,Revenue,ALLPAY LTD,00122276
South Ribble Council,http://statistics.data.gov.uk/doc/local-authority/30UN,Property Services,Rep & Maint Premises,2020,ADDRESS REDACTED,19/08/2020,0000458277,110.00,Revenue,APEC Environmental Ltd,132327
South Ribble Council,http://statistics.data.gov.uk/doc/local-authority/30UN,Property Services,Rep & Maint Premises,2020,ADDRESS REDACTED,19/08/2020,0000458277,110.00,Revenue,APEC Environmental Ltd,132327
South Ribble Council,http://statistics.data.gov.uk/doc/local-authority/30UN,Property Services,Rep & Maint Premises,2020,ADDRESS REDACTED,19/08/2020,0000458277,110.00,Revenue,APEC Environmental Ltd,132327
South Ribble Council,http://statistics.data.gov.uk/doc/local-authority/30UN,Information Services,Peripherals,4248,APT BACS iConnect Hosted Extended Security 3 User Software Service and support contract B/8399/01A for period 01/09/29 - 31/08/21,21/08/2020,0000458293,"1,099.00",Revenue,APT LTD,130261
South Ribble Council,http://statistics.data.gov.uk/doc/local-authority/30UN,Information Services,Peripherals,4248,APT BACS iConnect additional Licence B/8399/02A for period 01/09/20 - 31/08/21,21/08/2020,0000458293,225.00,Revenue,APT LTD,130261
South Ribble Council,http://statistics.data.gov.uk/doc/local-authority/30UN,Housing,Capital Expenditure,C230,"To carry out conversion works and create 9 self contained flats as tendered at Pearson House, Station Road, Bamber Bridge, work to commence 1st June 2020",05/08/2020,0000458017,"24,800.00",Revenue,ASH BARN CONSTRUCTION LTD,00081278
South Ribble Council,http://statistics.data.gov.uk/doc/local-authority/30UN,Shared Assurance Services,Professional Fees,4520,"As advised by NAME REDACTED for the introduction fee of 1875, for a temporary Senior Auditor",26/08/2020,0000458267,"1,875.00",Revenue,Ashley Kate HR Limited,133167
South Ribble Council,http://statistics.data.gov.uk/doc/local-authority/30UN,Property Services,Rep & Maint Premises,2020,force through per email NAME REDACTED attached in notes,21/08/2020,0000453654,390.80,Revenue,ASHTEAD PLANT HIRE CO LTD,00014245
South Ribble Council,http://statistics.data.gov.uk/doc/local-authority/30UN,Property Services,Rep & Maint Premises,2020,For A/V canteen unit 21 ft for site at Penwortham Holme,21/08/2020,0000456955,259.60,Revenue,ASHTEAD PLANT HIRE CO LTD,00014245
South Ribble Council,http://statistics.data.gov.uk/doc/local-authority/30UN,Regeneration,Rep & Maint Premises,2020,To carry out below additional works at the South Ribble Civic Centre as per email from NAME REDACTED dated 11.02.2020,19/08/2020,0000458244,980.00,Revenue,Bambers Remedial Contractors Ltd,132736
South Ribble Council,http://statistics.data.gov.uk/doc/local-authority/30UN,Regeneration,Rep & Maint Premises,2020,"To carry out below additional works at North Lodge, Worden Park as agreed on site. 1: Supply and fit battery operated LED Lights in the Bathroom",19/08/2020,0000458245,980.00,Revenue,Bambers Remedial Contractors Ltd,132736
South Ribble Council,http://statistics.data.gov.uk/doc/local-authority/30UN,Regeneration,Capital Expenditure,C230,Please carry out work to North Lodge improvements - Worden Park. Works to be carried out as per quotation to NAME REDACTED,21/08/2020,0000458246,"17,478.15",Revenue,Bambers Remedial Contractors Ltd,132736
South Ribble Council,http://statistics.data.gov.uk/doc/local-authority/30UN,Regeneration,Capital Expenditure,C230,"To hack off the old render and install K-Lime to the gable end wall at Worden Hall, Worden Park as per our estimate dated 05.02.2020 inv 16461",19/08/2020,0000458288,"9,850.00",Revenue,Bambers Remedial Contractors Ltd,132736
South Ribble Council,http://statistics.data.gov.uk/doc/local-authority/30UN,Information Services,Capital Expenditure,C234,SMA405FZKD BTU  -  50 x Samsung Galaxy A40 - Smartphone - dual-SIM - 4G L TE - 64 GB - microSDXC slot - GSM - 5.9 - 2340 x 1080 pixels ,12/08/2020,0000457161,"8,554.00",Revenue,BANNER GROUP LTD,00081485
South Ribble Council,http://statistics.data.gov.uk/doc/local-authority/30UN,Housing,Cap Grant- Improve Grants,C570,DFG WORKS TO BATHROOM AT ADDRESS REDACTED AS PER QUOTE SUPPLIED OF 3778.13 TOTAL GRANT COST  3778.13,19/08/2020,0000458086,"3,778.13",Revenue,Bartons of Duke Street Ltd,132663
South Ribble Council,http://statistics.data.gov.uk/doc/local-authority/30UN,Property Services,Rep & Maint Premises,2020,Annual Inspection 2020/2021 for electrical testing on remainder of sports pavilions,19/08/2020,0000458213,264.75,Revenue,BELEC ELECTRICAL LTD,130290
South Ribble Council,http://statistics.data.gov.uk/doc/local-authority/30UN,Property Services,Rep & Maint Premises,2020,Annual Inspection 2020/2021 for electrical testing on remainder of sports pavilions,19/08/2020,0000458214,381.70,Revenue,BELEC ELECTRICAL LTD,130290
South Ribble Council,http://statistics.data.gov.uk/doc/local-authority/30UN,Property Services,Rep & Maint Premises,2020,Annual Inspection 2020/2021 for electrical testing on remainder of sports pavilions,19/08/2020,0000458215,357.80,Revenue,BELEC ELECTRICAL LTD,130290
South Ribble Council,http://statistics.data.gov.uk/doc/local-authority/30UN,Property Services,Rep & Maint Premises,2020,Annual Inspection 2020/2021 for electrical testing on remainder of sports pavilions,19/08/2020,0000458218,339.10,Revenue,BELEC ELECTRICAL LTD,130290
South Ribble Council,http://statistics.data.gov.uk/doc/local-authority/30UN,Property Services,Rep & Maint Premises,2020,Annual Inspection 2020/2021 for electrical testing on remainder of sports pavilions,19/08/2020,0000458219,334.60,Revenue,BELEC ELECTRICAL LTD,130290
South Ribble Council,http://statistics.data.gov.uk/doc/local-authority/30UN,Property Services,Rep & Maint Premises,2020,Annual Inspection 2020/2021 for electrical testing on remainder of sports pavilions,19/08/2020,0000458220,351.10,Revenue,BELEC ELECTRICAL LTD,130290
South Ribble Council,http://statistics.data.gov.uk/doc/local-authority/30UN,Property Services,Rep & Maint Premises,2020,Annual Inspection 2020/2021 for electrical testing on remainder of sports pavilions,19/08/2020,0000458221,298.00,Revenue,BELEC ELECTRICAL LTD,130290
South Ribble Council,http://statistics.data.gov.uk/doc/local-authority/30UN,Property Services,Rep & Maint Premises,2020,Please fit two power supplies for the doors. Est. 300.00  to unit at Middleforth discussed with NAME REDACTED for fitting of roller shutter doors.,19/08/2020,0000458254,300.00,Revenue,BELEC ELECTRICAL LTD,130290
South Ribble Council,http://statistics.data.gov.uk/doc/local-authority/30UN,Property Services,Rep & Maint Premises,2020,"Please carry out works as per NAME REDACTED - this is to remove and re-locate trunking in the conservative group room, 1st floor. 300.",19/08/2020,0000458259,395.00,Revenue,BELEC ELECTRICAL LTD,130290
South Ribble Council,http://statistics.data.gov.uk/doc/local-authority/30UN,Property Services,Rep & Maint Premises,2020,Annual Contract  2020 / 2021 for  fan convector maintenance at the Civic Centre,19/08/2020,0000458260,312.00,Revenue,BELEC ELECTRICAL LTD,130290
South Ribble Council,http://statistics.data.gov.uk/doc/local-authority/30UN,Property Services,Rep & Maint Premises,2020,New three phase board and electrical test at number ADDRESS REDACTED 650.00 (Estimate). As per NAME REDACTED request,19/08/2020,0000458263,"1,433.72",Revenue,BELEC ELECTRICAL LTD,130290
South Ribble Council,http://statistics.data.gov.uk/doc/local-authority/30UN,Healthy Communities,Materials General,4040,Various Sports Equipment for Additional Streets on Active Streets Project,14/08/2020,0000458152,584.45,Revenue,Bishop Sports & Leisure Ltd,131843
South Ribble Council,http://statistics.data.gov.uk/doc/local-authority/30UN,Neighbourhood Admin & Support,Materials General,4040,DERBY SLIMLINE LITTER BIN WITH ASHTRAY (BLUE) - BX45 2596,12/08/2020,0000457930,"4,600.00",Revenue,BROXAP LTD,00028736
South Ribble Council,http://statistics.data.gov.uk/doc/local-authority/30UN,Revenues Plus,Professional Fees,4520,Covid 19 Hardship Fund Software Changes,26/08/2020,0000458439,"6,766.00",Revenue,CAPITA BUSINESS SERVICES LTD,00122179
South Ribble Council,http://statistics.data.gov.uk/doc/local-authority/30UN,Property Services,Rep & Maint Fixed Plant,2035,Please undertake work to sort the problem with the alarm to the roller shutter at Moss Side Depot,07/08/2020,0000458039,254.17,Revenue,CHUBB LTD,00090625
South Ribble Council,http://statistics.data.gov.uk/doc/local-authority/30UN,Area 2 - Waste Transport/Eastern & Central Teams,Materials General,4040,1 x Spec Repair,26/08/2020,0000458369,445.20,Revenue,CICELEY COMMERCIALS LTD,00059381
South Ribble Council,http://statistics.data.gov.uk/doc/local-authority/30UN,Revenues Plus,Postage,4291,Postage April to Sept 2020,12/08/2020,0000458047,321.71,Revenue,CRITIQOM,131053
South Ribble Council,http://statistics.data.gov.uk/doc/local-authority/30UN,Revenues Plus,Postage,4291,Postage April to Sept 2020,19/08/2020,0000458197,363.71,Revenue,CRITIQOM,131053
South Ribble Council,http://statistics.data.gov.uk/doc/local-authority/30UN,Revenues Plus,Postage,4291,Postage April to Sept 2020,26/08/2020,0000458341,275.82,Revenue,CRITIQOM,131053
South Ribble Council,http://statistics.data.gov.uk/doc/local-authority/30UN,Revenues Plus,Postage,4291,Postage April to Sept 2020,28/08/2020,0000458469,258.82,Revenue,CRITIQOM,131053
South Ribble Council,http://statistics.data.gov.uk/doc/local-authority/30UN,HR & Communications,Balance Sheet,0030,CYCLESCHEME PACKAGE CERTIFICATE NUMBER REDACTED FOR NAME REDACTED,28/08/2020,0000458419,441.67,Revenue,CYCLESCHEME CO  UK,130237
South Ribble Council,http://statistics.data.gov.uk/doc/local-authority/30UN,HR & Communications,Balance Sheet,0030,helmets,28/08/2020,0000458419,70.00,Revenue,CYCLESCHEME CO  UK,130237
South Ribble Council,http://statistics.data.gov.uk/doc/local-authority/30UN,Legal,Legal,4821,PROFESSIONAL SERVICES  REGARDING AN EMPLOYMENT MATTER,12/08/2020,0000458049,768.80,Revenue,DAC BEACHCROFT LLP,131193
South Ribble Council,http://statistics.data.gov.uk/doc/local-authority/30UN,Legal,Legal,4821,PROFESSIONAL SERVICES  REGARDING AN EMPLOYMENT MATTER,12/08/2020,0000458082,"4,150.00",Revenue,DAC BEACHCROFT LLP,131193
South Ribble Council,http://statistics.data.gov.uk/doc/local-authority/30UN,Legal,Legal,4821,PROFESSIONAL SERVICES REGARDING AN EMPLOYMENT MATTER,28/08/2020,0000458313,"2,250.00",Revenue,DAC BEACHCROFT LLP,131193
South Ribble Council,http://statistics.data.gov.uk/doc/local-authority/30UN,Legal,Legal,4821,PROFESSIONAL SERVICES REGARDING AN EMPLOYMENT MATTER,28/08/2020,0000458332,"2,950.00",Revenue,DAC BEACHCROFT LLP,131193
South Ribble Council,http://statistics.data.gov.uk/doc/local-authority/30UN,Property Services,Rep & Maint Premises,2020,"maintenance 2020/2021 of 1 x  McSmart 240cr Industrial Water Chiller  and 1 x McQuay Air Handling Unit, Schedule 1 /2/3 agreement 00006942",07/08/2020,0000458019,653.25,Revenue,DAIKIN APPLIED SERVICE,130324
South Ribble Council,http://statistics.data.gov.uk/doc/local-authority/30UN,Area 2 - Waste Transport/Eastern & Central Teams,External Contractors Charges,4570,Insurance excess and VAT charges for accident repairs FV69GZJ JFC15101,26/08/2020,0000458193,250.00,Revenue,DAVAND LTD (trading as Longton Coachcraft),131579
South Ribble Council,http://statistics.data.gov.uk/doc/local-authority/30UN,Area 2 - Waste Transport/Eastern & Central Teams,External Contractors Charges,4570,vat,26/08/2020,0000458193,0.00,Revenue,DAVAND LTD (trading as Longton Coachcraft),131579
South Ribble Council,http://statistics.data.gov.uk/doc/local-authority/30UN,Property Services,Rep & Maint Premises,2020,"Defib Pads `41  and battery for  Powerheart G5 AED 70-01704-02A, Intellisense battery model XBTAED001 @ 220.0 for NAME REDACTED",12/08/2020,0000458088,271.00,Revenue,DEFIBSTORE LTD,132512
South Ribble Council,http://statistics.data.gov.uk/doc/local-authority/30UN,HR & Communications,Advertising,4848,6 MONTH MEMBERSHIP RENEWAL FOR CITIZEN SPACE SUBSCRIPTION,19/08/2020,0000458243,"3,997.50",Revenue,Delib Ltd,132765
South Ribble Council,http://statistics.data.gov.uk/doc/local-authority/30UN,Area 2 - Waste Transport/Eastern & Central Teams,Materials General,4040,HYDRAULIC PUMP + FILTER - VO65KPZ- JFC15133,14/08/2020,0000458128,"3,609.42",Revenue,DENNIS EAGLE LTD,00019774
South Ribble Council,http://statistics.data.gov.uk/doc/local-authority/30UN,Area 2 - Waste Transport/Eastern & Central Teams,Cap Vehicles,C440,Boarding out of Peugeot Boxer Van as per quote dated 08/07/2020.,26/08/2020,0000457894,265.00,Revenue,E. O`Donnell T/A Trailscot,132964
South Ribble Council,http://statistics.data.gov.uk/doc/local-authority/30UN,Information Services,Peripherals,4260,01 Aug 2020,12/08/2020,0000458123,"4,224.44",Revenue,EE Ltd,131653
South Ribble Council,http://statistics.data.gov.uk/doc/local-authority/30UN,Area 2 - Waste Transport/Eastern & Central Teams,Materials General,4040,1 CYLINDER PJ62 UCM JFC15005,05/08/2020,0000457798,250.00,Revenue,Euro Municipals Ltd,132810
South Ribble Council,http://statistics.data.gov.uk/doc/local-authority/30UN,Area 2 - Waste Transport/Eastern & Central Teams,Materials General,4040,Hydraulic pump PO16 HMZ JFC14658,05/08/2020,0000456654,537.91,Revenue,F R SHARROCK LTD,00034539
South Ribble Council,http://statistics.data.gov.uk/doc/local-authority/30UN,Area 2 - Waste Transport/Eastern & Central Teams,Materials General,4040,1 x exhaust 1 x lift ramp PO16HMZ JFC15018,07/08/2020,0000457813,356.62,Revenue,F R SHARROCK LTD,00034539
South Ribble Council,http://statistics.data.gov.uk/doc/local-authority/30UN,Area 2 - Waste Transport/Eastern & Central Teams,Materials General,4040,6 deck pins - BIN 1252,07/08/2020,0000457926,191.00,Revenue,F R SHARROCK LTD,00034539
South Ribble Council,http://statistics.data.gov.uk/doc/local-authority/30UN,Area 2 - Waste Transport/Eastern & Central Teams,Materials General,4040,7 x rollers - BIN1268,07/08/2020,0000457926,487.78,Revenue,F R SHARROCK LTD,00034539
South Ribble Council,http://statistics.data.gov.uk/doc/local-authority/30UN,Area 2 - Waste Transport/Eastern & Central Teams,Materials General,4040,3 x cylinder adjusters- BIN1111,07/08/2020,0000457926,100.34,Revenue,F R SHARROCK LTD,00034539
South Ribble Council,http://statistics.data.gov.uk/doc/local-authority/30UN,Area 2 - Waste Transport/Eastern & Central Teams,Materials General,4040,6 x cutting blades,07/08/2020,0000457926,"1,485.60",Revenue,F R SHARROCK LTD,00034539
South Ribble Council,http://statistics.data.gov.uk/doc/local-authority/30UN,Area 2 - Waste Transport/Eastern & Central Teams,External Contractors Charges,4570,1 x TST Unit PO16 HNA JFC14873,26/08/2020,0000458211,495.00,Revenue,F R SHARROCK LTD,00034539
South Ribble Council,http://statistics.data.gov.uk/doc/local-authority/30UN,Area 2 - Waste Transport/Eastern & Central Teams,External Contractors Charges,4570,1 x TST Unit PO16 HMZ JFC14874,26/08/2020,0000458211,495.00,Revenue,F R SHARROCK LTD,00034539
South Ribble Council,http://statistics.data.gov.uk/doc/local-authority/30UN,Area 2 - Waste Transport/Eastern & Central Teams,External Contractors Charges,4570,1 x TST Unit PO16 HMY JFC14875,26/08/2020,0000458211,495.00,Revenue,F R SHARROCK LTD,00034539
South Ribble Council,http://statistics.data.gov.uk/doc/local-authority/30UN,Area 2 - Waste Transport/Eastern & Central Teams,External Contractors Charges,4570,1 x TST Unit PO16 HMX JFC14876,26/08/2020,0000458211,495.00,Revenue,F R SHARROCK LTD,00034539
South Ribble Council,http://statistics.data.gov.uk/doc/local-authority/30UN,Area 2 - Waste Transport/Eastern & Central Teams,External Contractors Charges,4570,1 x TST Unit PO16 HMV JFC14877,26/08/2020,0000458211,495.00,Revenue,F R SHARROCK LTD,00034539
South Ribble Council,http://statistics.data.gov.uk/doc/local-authority/30UN,Area 2 - Waste Transport/Eastern & Central Teams,External Contractors Charges,4570,1 x TST Unit PO16 HMU JFC14878,26/08/2020,0000458211,495.00,Revenue,F R SHARROCK LTD,00034539
South Ribble Council,http://statistics.data.gov.uk/doc/local-authority/30UN,Area 2 - Waste Transport/Eastern & Central Teams,External Contractors Charges,4570,1 x TST Unit PO19 FDV JFC14879,26/08/2020,0000458211,495.00,Revenue,F R SHARROCK LTD,00034539
South Ribble Council,http://statistics.data.gov.uk/doc/local-authority/30UN,Area 2 - Waste Transport/Eastern & Central Teams,External Contractors Charges,4570,1 x TST Unit PO19 FDU JFC14880,26/08/2020,0000458211,495.00,Revenue,F R SHARROCK LTD,00034539
South Ribble Council,http://statistics.data.gov.uk/doc/local-authority/30UN,Area 2 - Waste Transport/Eastern & Central Teams,Materials General,4040,85 x sole plate screws- BIN 1114 12 x sole plates- BIN1265,19/08/2020,0000458251,381.04,Revenue,F R SHARROCK LTD,00034539
South Ribble Council,http://statistics.data.gov.uk/doc/local-authority/30UN,Area 2 - Waste Transport/Eastern & Central Teams,External Contractors Charges,4570,Residual Waste Collections July 2020,14/08/2020,0000458052,"45,660.96",Revenue,FCC Environment Services (UK) Ltd,131612
South Ribble Council,http://statistics.data.gov.uk/doc/local-authority/30UN,Area 2 - Waste Transport/Eastern & Central Teams,External Contractors Charges,4570,Dry recyclable non-terraced July 2020,14/08/2020,0000458052,"46,746.51",Revenue,FCC Environment Services (UK) Ltd,131612
South Ribble Council,http://statistics.data.gov.uk/doc/local-authority/30UN,Area 2 - Waste Transport/Eastern & Central Teams,External Contractors Charges,4570,Dry recyclable terraced July 2020,14/08/2020,0000458052,"2,224.41",Revenue,FCC Environment Services (UK) Ltd,131612
South Ribble Council,http://statistics.data.gov.uk/doc/local-authority/30UN,Area 2 - Waste Transport/Eastern & Central Teams,External Contractors Charges,4570,Organic Waste non terraced July 2020,14/08/2020,0000458052,"32,371.11",Revenue,FCC Environment Services (UK) Ltd,131612
South Ribble Council,http://statistics.data.gov.uk/doc/local-authority/30UN,Area 2 - Waste Transport/Eastern & Central Teams,External Contractors Charges,4570,Schedule 2 properties July 2020,14/08/2020,0000458052,"1,860.35",Revenue,FCC Environment Services (UK) Ltd,131612
South Ribble Council,http://statistics.data.gov.uk/doc/local-authority/30UN,Area 2 - Waste Transport/Eastern & Central Teams,External Contractors Charges,4570,Commercial Waste July 2020,14/08/2020,0000458052,"7,249.95",Revenue,FCC Environment Services (UK) Ltd,131612
South Ribble Council,http://statistics.data.gov.uk/doc/local-authority/30UN,Area 2 - Waste Transport/Eastern & Central Teams,External Contractors Charges,4570,Bulky Waste July 2020,14/08/2020,0000458052,"1,005.57",Revenue,FCC Environment Services (UK) Ltd,131612
South Ribble Council,http://statistics.data.gov.uk/doc/local-authority/30UN,Area 2 - Waste Transport/Eastern & Central Teams,External Contractors Charges,4570,WEEE collections July 2020,14/08/2020,0000458052,377.48,Revenue,FCC Environment Services (UK) Ltd,131612
South Ribble Council,http://statistics.data.gov.uk/doc/local-authority/30UN,Area 2 - Waste Transport/Eastern & Central Teams,External Contractors Charges,4570,Clinical Waste July 2020,14/08/2020,0000458052,643.04,Revenue,FCC Environment Services (UK) Ltd,131612
South Ribble Council,http://statistics.data.gov.uk/doc/local-authority/30UN,Area 2 - Waste Transport/Eastern & Central Teams,External Contractors Charges,4570,Replacement bins July 2020,14/08/2020,0000458052,"5,000.00",Revenue,FCC Environment Services (UK) Ltd,131612
South Ribble Council,http://statistics.data.gov.uk/doc/local-authority/30UN,Area 2 - Waste Transport/Eastern & Central Teams,External Contractors Charges,4570,Additional properties July 2020,14/08/2020,0000458052,"2,941.70",Revenue,FCC Environment Services (UK) Ltd,131612
South Ribble Council,http://statistics.data.gov.uk/doc/local-authority/30UN,Area 2 - Waste Transport/Eastern & Central Teams,Balance Sheet,0030,retention refuse,14/08/2020,0000458052,"-2,986.95",Revenue,FCC Environment Services (UK) Ltd,131612
South Ribble Council,http://statistics.data.gov.uk/doc/local-authority/30UN,Area 2 - Waste Transport/Eastern & Central Teams,Balance Sheet,0030,retention recycling,14/08/2020,0000458052,"-4,067.10",Revenue,FCC Environment Services (UK) Ltd,131612
South Ribble Council,http://statistics.data.gov.uk/doc/local-authority/30UN,Area 2 - Waste Transport/Eastern & Central Teams,External Contractors Charges,4570,Additional Clinical Waste Collections July 2020,12/08/2020,0000458055,391.28,Revenue,FCC Environment Services (UK) Ltd,131612
South Ribble Council,http://statistics.data.gov.uk/doc/local-authority/30UN,Area 2 - Waste Transport/Eastern & Central Teams,Balance Sheet,0030,retention,12/08/2020,0000458055,-19.56,Revenue,FCC Environment Services (UK) Ltd,131612
South Ribble Council,http://statistics.data.gov.uk/doc/local-authority/30UN,Information Services,Capital Expenditure,C234,Outlook Integration,28/08/2020,0000458004,"5,000.00",Revenue,FIRMSTEP,00114022
South Ribble Council,http://statistics.data.gov.uk/doc/local-authority/30UN,Information Services,Peripherals,4248,Outlook Integration,28/08/2020,0000458004,"3,000.00",Revenue,FIRMSTEP,00114022
South Ribble Council,http://statistics.data.gov.uk/doc/local-authority/30UN,Neighbourhood Admin & Support,Materials General,4040,PITCHMARKER Q2 - 10 litres,19/08/2020,0000458176,497.04,Revenue,Fleet Line Markers Limited,131942
South Ribble Council,http://statistics.data.gov.uk/doc/local-authority/30UN,Area 3 - Parks/Leyland East West,Professional Fees,4510,ins costs agreed,07/08/2020,0000457971,371.50,Revenue,FRIENDS OF HURST GRANGE PARK,00113405
South Ribble Council,http://statistics.data.gov.uk/doc/local-authority/30UN,Property Services,Rep & Maint Premises,2020,To create a scaled CAD drawing of the Civic Centre as agreed with facilities management.,19/08/2020,0000458278,"1,875.00",Revenue,FuZED Architecture and Design Ltd,133159
South Ribble Council,http://statistics.data.gov.uk/doc/local-authority/30UN,Legal,Legal,4821,PROFESSIONAL SERVICES IN RELATION TO AN INVESTIGATORY MATTER FROM 1 MAY 2020,28/08/2020,0000458478,"2,613.16",Revenue,GELDARDS LLP,133028
South Ribble Council,http://statistics.data.gov.uk/doc/local-authority/30UN,Area 1 - Penwortham Western Parishes,Materials General,4040,TMSD005-3000 - Stay 2m Apart (Text in White),26/08/2020,0000458368,300.00,Revenue,Grassmats Ltd t/a Thermmark,132892
South Ribble Council,http://statistics.data.gov.uk/doc/local-authority/30UN,Area 1 - Penwortham Western Parishes,Materials General,4040,TREC001-1000LG Electric Car Charging Symbol 1 (Light Green),26/08/2020,0000458368,260.00,Revenue,Grassmats Ltd t/a Thermmark,132892
South Ribble Council,http://statistics.data.gov.uk/doc/local-authority/30UN,Area 1 - Penwortham Western Parishes,Materials General,4040,"TML100-Y Line - single (Yellow,100mm)",26/08/2020,0000458368,56.10,Revenue,Grassmats Ltd t/a Thermmark,132892
South Ribble Council,http://statistics.data.gov.uk/doc/local-authority/30UN,Area 1 - Penwortham Western Parishes,Materials General,4040,"TML100-LB Line -single (Light Blue, 100mm)",26/08/2020,0000458368,56.10,Revenue,Grassmats Ltd t/a Thermmark,132892
South Ribble Council,http://statistics.data.gov.uk/doc/local-authority/30UN,Area 1 - Penwortham Western Parishes,Materials General,4040,"TML100-LG Line - single (Light Green, 100mm)",26/08/2020,0000458368,56.10,Revenue,Grassmats Ltd t/a Thermmark,132892
South Ribble Council,http://statistics.data.gov.uk/doc/local-authority/30UN,Area 1 - Penwortham Western Parishes,Materials General,4040,TMM002-5 Primer 5kg,26/08/2020,0000458368,50.00,Revenue,Grassmats Ltd t/a Thermmark,132892
South Ribble Council,http://statistics.data.gov.uk/doc/local-authority/30UN,Area 1 - Penwortham Western Parishes,Materials General,4040,Palletised Delivery,26/08/2020,0000458368,40.00,Revenue,Grassmats Ltd t/a Thermmark,132892
South Ribble Council,http://statistics.data.gov.uk/doc/local-authority/30UN,Property Services,Advertising,4841,Please provide sponsorship/advertising  for Leyland Market for 2 years as per Market Manager - NAME REDACTED,21/08/2020,0000458331,400.00,Revenue,GREGSON LANE JUNIOR FOOTBALL CLUB,130583
South Ribble Council,http://statistics.data.gov.uk/doc/local-authority/30UN,Environmental Health,Licence Fees,488B,management fee jul to sept 20,05/08/2020,0000457859,"1,000.00",Revenue,HIGHER WALTON COMMUNITY CENTRE,00070535
South Ribble Council,http://statistics.data.gov.uk/doc/local-authority/30UN,Shared Financial Services,Balance Sheet,0140,,21/08/2020,0000457536,"1,019.00",Revenue,HM REVENUE & CUSTOMS,00024837
South Ribble Council,http://statistics.data.gov.uk/doc/local-authority/30UN,Shared Financial Services,Balance Sheet,0140,,21/08/2020,0000457703,"1,417.28",Revenue,HM REVENUE & CUSTOMS,00024837
South Ribble Council,http://statistics.data.gov.uk/doc/local-authority/30UN,Revenues Plus,Professional Fees,4510,"Analyse Local - RV Finder - NAME REDACTED, Much Hoole.",28/08/2020,0000458411,300.00,Revenue,Inform CPI Ltd,131666
South Ribble Council,http://statistics.data.gov.uk/doc/local-authority/30UN,Revenues Plus,Professional Fees,4510,RV Finder - ADDRESS REDACTED,28/08/2020,0000458476,750.00,Revenue,Inform CPI Ltd,131666
South Ribble Council,http://statistics.data.gov.uk/doc/local-authority/30UN,Neighbourhood Admin & Support,Materials General,4040,PERMANENT POTHOLE REPAIR - TUB -Special,26/08/2020,0000458180,382.98,Revenue,INSTARMAC GROUP PLC,00024905
South Ribble Council,http://statistics.data.gov.uk/doc/local-authority/30UN,Neighbourhood Admin & Support,Materials General,4040,SCJ BITUMEN COLD JOINT SEALER (Box12) - Special,26/08/2020,0000458180,118.68,Revenue,INSTARMAC GROUP PLC,00024905
South Ribble Council,http://statistics.data.gov.uk/doc/local-authority/30UN,HR & Communications,Payroll Suspense,1741,IOL MEMBERSHIP SUBSCRIPTION RENEWAL FOR 2020-2021 - EXPIRES 31 MARCH 2021,12/08/2020,0000458087,310.00,Revenue,INSTITUTE OF LICENSING,132386
South Ribble Council,http://statistics.data.gov.uk/doc/local-authority/30UN,Property Services,Rep & Maint Premises,2020,Please carry out works as per NAME REDACTED We had installed a replacement Oil meter on site as part of the boiler upgrade at Worden.,26/08/2020,0000458321,778.46,Revenue,JAMES MERCER GROUP LTD,00028587
South Ribble Council,http://statistics.data.gov.uk/doc/local-authority/30UN,Property Services,Rep & Maint Premises,2020,"2020 - 21 maintenance of Trend BMS HVAC 4 x day visits (TBA)  June, Sept, Dec, March - at the Civic Centre per quote C572 - R200 ",05/08/2020,0000458012,424.00,Revenue,JBC CONTROL SYSTEM,130816
South Ribble Council,http://statistics.data.gov.uk/doc/local-authority/30UN,Regeneration,Capital Expenditure,C230,works to reinstate the path at St Catherine`s park and the green links works at Leyland lane (Leyland loop) agreed with SRBC regeneration dept.,26/08/2020,0000458420,"4,420.00",Revenue,John Wade Groundworks Ltd t/a Wade Group,131568
South Ribble Council,http://statistics.data.gov.uk/doc/local-authority/30UN,Planning,Advertising,4841,Press Notices in the Lancashire Evening Post for planning applications April 2020 to March 2021,07/08/2020,0000457836,810.00,Revenue,JPI Media - JOHNSTON PUBLISHING (NORTH WEST),00011345
South Ribble Council,http://statistics.data.gov.uk/doc/local-authority/30UN,Planning,Advertising,4841,Press Notices in the Lancashire Evening Post for planning applications April 2020 to March 2021,07/08/2020,0000457837,891.00,Revenue,JPI Media - JOHNSTON PUBLISHING (NORTH WEST),00011345
South Ribble Council,http://statistics.data.gov.uk/doc/local-authority/30UN,Planning,Advertising,4841,Press notices in the Lancashire Evening Post for Planning Applications July 2020 to March 2021,21/08/2020,0000457893,810.00,Revenue,JPI Media - JOHNSTON PUBLISHING (NORTH WEST),00011345
South Ribble Council,http://statistics.data.gov.uk/doc/local-authority/30UN,Planning,Advertising,4841,Press notices in the Lancashire Evening Post for Planning Applications July 2020 to March 2021,21/08/2020,0000457925,891.00,Revenue,JPI Media - JOHNSTON PUBLISHING (NORTH WEST),00011345
South Ribble Council,http://statistics.data.gov.uk/doc/local-authority/30UN,Homelessness,Other Misc,4851,NAME REDACTED Covid19 placement B&B 50/night initial invoice 16/4-22/4/2020 invoice no 1000930,07/08/2020,0000457276,291.66,Revenue,K MOTLEY,00098614
South Ribble Council,http://statistics.data.gov.uk/doc/local-authority/30UN,Homelessness,Other Misc,4851,NAME REDACTED cont COVID19 placement 23/4- 29/4/2020 invoice no 1000931,07/08/2020,0000457276,291.66,Revenue,K MOTLEY,00098614
South Ribble Council,http://statistics.data.gov.uk/doc/local-authority/30UN,Homelessness,Other Misc,4851,NAME REDACTED cont COVID19 placement 30/4 - 6/5/2020 invoice no 100093,07/08/2020,0000457276,291.66,Revenue,K MOTLEY,00098614
South Ribble Council,http://statistics.data.gov.uk/doc/local-authority/30UN,Homelessness,Other Misc,4851,NAME REDACTED cont COVID19 placement 7/5 - 13/5/2020 invoice no 1000934,07/08/2020,0000457276,291.66,Revenue,K MOTLEY,00098614
South Ribble Council,http://statistics.data.gov.uk/doc/local-authority/30UN,Homelessness,Other Misc,4851,NAME REDACTED cont COVID 19 placement 14/5 - 27/5/2020 invoice no 1000935,07/08/2020,0000457276,583.33,Revenue,K MOTLEY,00098614
South Ribble Council,http://statistics.data.gov.uk/doc/local-authority/30UN,Homelessness,Other Misc,4851,NAME REDACTED final COVID 19 placement 28/5 - 11/6/2020 invoice no 1000936,07/08/2020,0000457276,625.03,Revenue,K MOTLEY,00098614
South Ribble Council,http://statistics.data.gov.uk/doc/local-authority/30UN,Area 2 - Waste Transport/Eastern & Central Teams,Waste Disposal Charges,5112,May 2020 - Incineration of Clinical Waste,05/08/2020,0000457978,426.23,Revenue,LANCASHIRE TEACHING FT,00120715
South Ribble Council,http://statistics.data.gov.uk/doc/local-authority/30UN,Legal,Other Local Authorities,4530,LAND CHARGES - JULY 2020,26/08/2020,0000458366,806.00,Revenue,LANCS COUNTY COUNCIL,00041645
South Ribble Council,http://statistics.data.gov.uk/doc/local-authority/30UN,Area 2 - Waste Transport/Eastern & Central Teams,Materials General,4040,1 filter kit including oil YA19 NKC JFC15139,12/08/2020,0000458130,460.16,Revenue,LANCS DAF,00026424
South Ribble Council,http://statistics.data.gov.uk/doc/local-authority/30UN,Area 2 - Waste Transport/Eastern & Central Teams,Materials General,4040,1 x filter kit with 2 drums of oil PF18 JOV JFC15190,26/08/2020,0000458292,361.67,Revenue,LANCS DAF,00026424
South Ribble Council,http://statistics.data.gov.uk/doc/local-authority/30UN,Area 2 - Waste Transport/Eastern & Central Teams,Materials General,4040,DRIVERS SEAT BASE - YA19NKD - JFC15206,26/08/2020,0000458376,356.42,Revenue,LANCS DAF,00026424
South Ribble Council,http://statistics.data.gov.uk/doc/local-authority/30UN,Property Services,Rep & Maint Premises,2020,"quote PR5704, CCTV Crawler 1 350.00, Plant 1 Manhole entry 195.00, JetVac 1 Half day up to 4 hours 395.00, Waste 1 Disposal of waste",12/08/2020,0000458156,"1,010.00",Revenue,LANES GROUP PLC,131048
South Ribble Council,http://statistics.data.gov.uk/doc/local-authority/30UN,Housing,Capital Expenditure,C230,"TENDER SPEC TO PLANNING, QS COSTS, REVIEW OF TENDER DOC / RETURNS, SITE VISITS / REPORTS FOR PEARSON HOUSE ",05/08/2020,0000458010,280.00,Revenue,LEE MCGREGOR LMC ARCHITECTURE LTD,132806
South Ribble Council,http://statistics.data.gov.uk/doc/local-authority/30UN,Property Services,Rep & Maint Premises,2020,Please carry out works as per NAME REDACTED for ADDRESS REDACTED For cleaning the ground floor carpets for 9.30am Tuesday 28th,26/08/2020,0000458320,420.00,Revenue,LEYLAND CLEANING SERVICES,00002338
South Ribble Council,http://statistics.data.gov.uk/doc/local-authority/30UN,Property Services,Rep & Maint Premises,2020,Please carry out works as per NAME REDACTED request Costing for the fire doors survey for the Depot = 875 + VAT.,28/08/2020,0000458425,875.00,Revenue,Manchester Fire Compliance Ltd,133065
South Ribble Council,http://statistics.data.gov.uk/doc/local-authority/30UN,Planning,Consultancy Fees,4541,Support with the development of a Community Wealth Building Action Plan for South Ribble as per email of 9th June 2020,21/08/2020,0000458242,"2,000.00",Revenue,Matthew Baqueriza-Jackson LTD,133140
South Ribble Council,http://statistics.data.gov.uk/doc/local-authority/30UN,Area 3 - Parks/Leyland East West,Grounds Maint Cntrctrs Chgs,4657,remove 1x load of hardcore 150.00 remove 2x loads of inert waste - 420.00,28/08/2020,0000458294,360.00,Revenue,Michael Alty,132480
South Ribble Council,http://statistics.data.gov.uk/doc/local-authority/30UN,Environmental Health,Licence Fees,488B,fee jul to sept 20,07/08/2020,0000457857,"1,375.00",Revenue,MOSS SIDE COMMUNITY FORUM,00098724
South Ribble Council,http://statistics.data.gov.uk/doc/local-authority/30UN,Legal,Legal,4821,"PROFESSIONAL SERVICES WITH REGARD TO LAND REAR OF OAKDENE, CHAIN HSE LANE - V SOUTH RIBBLE BOROUGH COUNCIL",28/08/2020,0000458471,562.50,Revenue,Mr Alan Evans,131944
South Ribble Council,http://statistics.data.gov.uk/doc/local-authority/30UN,Property Services,Rep & Maint Premises,2020,Annual Contract for 2020 - 2021 for sweeping the various properties in Worden and Hurst Grange Parks Gardeners Cottage,19/08/2020,0000458174,60.00,Revenue,Mr Stuart Hardacre T/A Penwortham chimney Sweep,131451
South Ribble Council,http://statistics.data.gov.uk/doc/local-authority/30UN,Property Services,Rep & Maint Premises,2020,"Annual Contract for 2020- 2021 for sweeping the various properties in Worden and Hurst Grange Parks 4 Farmyard Cottage, Worden Park",19/08/2020,0000458174,115.00,Revenue,Mr Stuart Hardacre T/A Penwortham chimney Sweep,131451
South Ribble Council,http://statistics.data.gov.uk/doc/local-authority/30UN,Property Services,Rep & Maint Premises,2020,Annual Contract for 2020 -  2021 for sweeping the various properties in Worden and Hurst Grange Parks 3 Farmyard Cottage,19/08/2020,0000458174,60.00,Revenue,Mr Stuart Hardacre T/A Penwortham chimney Sweep,131451
South Ribble Council,http://statistics.data.gov.uk/doc/local-authority/30UN,Property Services,Rep & Maint Premises,2020,"Annual Contract for 2020 - 2021 for sweeping the various properties in Worden and Hurst Grange Parks The Bothy, Worden Park",19/08/2020,0000458174,60.00,Revenue,Mr Stuart Hardacre T/A Penwortham chimney Sweep,131451
South Ribble Council,http://statistics.data.gov.uk/doc/local-authority/30UN,Property Services,Rep & Maint Premises,2020,"Annual Contract for 2020 - 2021 for sweeping the various properties in Worden and Hurst Grange Parks North Lodge, Worden Park",19/08/2020,0000458174,60.00,Revenue,Mr Stuart Hardacre T/A Penwortham chimney Sweep,131451
South Ribble Council,http://statistics.data.gov.uk/doc/local-authority/30UN,Property Services,Rep & Maint Premises,2020,"Annual Contract for 2020 - 2021  for sweeping the various properties in Worden and Hurst Grange Parks Coach House, Hurst Grange Park",19/08/2020,0000458174,60.00,Revenue,Mr Stuart Hardacre T/A Penwortham chimney Sweep,131451
South Ribble Council,http://statistics.data.gov.uk/doc/local-authority/30UN,Information Services,Peripherals,4241,5 x HP 255 G7 Notebook Black 39.6 cm (15.6``) AMD Ryzen 3 8 GB DDR4-SDRAM 256 GB SSD Wi-Fi 5 (802.11ac) Windows 10 Home ,26/08/2020,0000458448,"1,860.00",Revenue,MYPREMIER LTD,130091
South Ribble Council,http://statistics.data.gov.uk/doc/local-authority/30UN,Area 2 - Waste Transport/Eastern & Central Teams,External Contractors Charges,4570,Service Wash VK09 AHJ JFC14912 - 27.5.20,07/08/2020,0000457397,65.00,Revenue,NAYLORS TRANSPORT (LEYLAND) ltd,00114828
South Ribble Council,http://statistics.data.gov.uk/doc/local-authority/30UN,Area 2 - Waste Transport/Eastern & Central Teams,External Contractors Charges,4570,Service Wash PO13 UUM JFC14913 3.6.20,07/08/2020,0000457397,65.00,Revenue,NAYLORS TRANSPORT (LEYLAND) ltd,00114828
South Ribble Council,http://statistics.data.gov.uk/doc/local-authority/30UN,Area 2 - Waste Transport/Eastern & Central Teams,External Contractors Charges,4570,Service Wash YA19 NKD JFC14914 - 4.6.20,07/08/2020,0000457397,65.00,Revenue,NAYLORS TRANSPORT (LEYLAND) ltd,00114828
South Ribble Council,http://statistics.data.gov.uk/doc/local-authority/30UN,Area 2 - Waste Transport/Eastern & Central Teams,External Contractors Charges,4570,Service Wash VX18 KLC JFC14915 8.6.20,07/08/2020,0000457397,65.00,Revenue,NAYLORS TRANSPORT (LEYLAND) ltd,00114828
South Ribble Council,http://statistics.data.gov.uk/doc/local-authority/30UN,Area 2 - Waste Transport/Eastern & Central Teams,External Contractors Charges,4570,Service Wash PF18 JOV JFC14916 - 11.6.20,07/08/2020,0000457397,65.00,Revenue,NAYLORS TRANSPORT (LEYLAND) ltd,00114828
South Ribble Council,http://statistics.data.gov.uk/doc/local-authority/30UN,Area 2 - Waste Transport/Eastern & Central Teams,External Contractors Charges,4570,Service Wash VO65 KRD JFC14918 17.6.20,07/08/2020,0000457397,65.00,Revenue,NAYLORS TRANSPORT (LEYLAND) ltd,00114828
South Ribble Council,http://statistics.data.gov.uk/doc/local-authority/30UN,Area 2 - Waste Transport/Eastern & Central Teams,External Contractors Charges,4570,Service Wash PO20 ZRV JFC14919 - 24.6.20,07/08/2020,0000457397,65.00,Revenue,NAYLORS TRANSPORT (LEYLAND) ltd,00114828
South Ribble Council,http://statistics.data.gov.uk/doc/local-authority/30UN,Area 2 - Waste Transport/Eastern & Central Teams,External Contractors Charges,4570,Service Wash VO65 KRE JFC14920 - 25.6.20,07/08/2020,0000457397,65.00,Revenue,NAYLORS TRANSPORT (LEYLAND) ltd,00114828
South Ribble Council,http://statistics.data.gov.uk/doc/local-authority/30UN,Area 2 - Waste Transport/Eastern & Central Teams,External Contractors Charges,4570,Service Wash VA19 KOX JFC14921 - 26.6.20,07/08/2020,0000457397,65.00,Revenue,NAYLORS TRANSPORT (LEYLAND) ltd,00114828
South Ribble Council,http://statistics.data.gov.uk/doc/local-authority/30UN,Area 2 - Waste Transport/Eastern & Central Teams,External Contractors Charges,4570,Service Wash VO65 KRF JFC14922 - 30.6.20,07/08/2020,0000457397,65.00,Revenue,NAYLORS TRANSPORT (LEYLAND) ltd,00114828
South Ribble Council,http://statistics.data.gov.uk/doc/local-authority/30UN,Area 2 - Waste Transport/Eastern & Central Teams,External Contractors Charges,4570,Service Wash VO65 KPX JFC14917,07/08/2020,0000457397,65.00,Revenue,NAYLORS TRANSPORT (LEYLAND) ltd,00114828
South Ribble Council,http://statistics.data.gov.uk/doc/local-authority/30UN,Area 2 - Waste Transport/Eastern & Central Teams,External Contractors Charges,4570,Service Wash 30.6.20 VO65 KRF JFC 15110,12/08/2020,0000458056,65.00,Revenue,NAYLORS TRANSPORT (LEYLAND) ltd,00114828
South Ribble Council,http://statistics.data.gov.uk/doc/local-authority/30UN,Area 2 - Waste Transport/Eastern & Central Teams,External Contractors Charges,4570,SERVICE WASH 1.7.20 - RV14 DTZ JFC15111,12/08/2020,0000458056,65.00,Revenue,NAYLORS TRANSPORT (LEYLAND) ltd,00114828
South Ribble Council,http://statistics.data.gov.uk/doc/local-authority/30UN,Area 2 - Waste Transport/Eastern & Central Teams,External Contractors Charges,4570,SERVICE WASH 8.7.20 - PO20 ZRX JFC15112,12/08/2020,0000458056,65.00,Revenue,NAYLORS TRANSPORT (LEYLAND) ltd,00114828
South Ribble Council,http://statistics.data.gov.uk/doc/local-authority/30UN,Area 2 - Waste Transport/Eastern & Central Teams,External Contractors Charges,4570,MOT WASH 9.7.20 MX04YNL JFC15113,12/08/2020,0000458056,75.00,Revenue,NAYLORS TRANSPORT (LEYLAND) ltd,00114828
South Ribble Council,http://statistics.data.gov.uk/doc/local-authority/30UN,Area 2 - Waste Transport/Eastern & Central Teams,External Contractors Charges,4570,SERVICE WASH 13.7.20 PJ62 UCM JFC15114,12/08/2020,0000458056,65.00,Revenue,NAYLORS TRANSPORT (LEYLAND) ltd,00114828
South Ribble Council,http://statistics.data.gov.uk/doc/local-authority/30UN,Area 2 - Waste Transport/Eastern & Central Teams,Materials General,4040,SERVICE WASH 15.7.20 PO13 UUM JFC15115,12/08/2020,0000458056,65.00,Revenue,NAYLORS TRANSPORT (LEYLAND) ltd,00114828
South Ribble Council,http://statistics.data.gov.uk/doc/local-authority/30UN,Area 2 - Waste Transport/Eastern & Central Teams,External Contractors Charges,4570,SERVICE WASH 21.7.20 - VX18 KLC JFC15116,12/08/2020,0000458056,65.00,Revenue,NAYLORS TRANSPORT (LEYLAND) ltd,00114828
South Ribble Council,http://statistics.data.gov.uk/doc/local-authority/30UN,Area 2 - Waste Transport/Eastern & Central Teams,External Contractors Charges,4570,SERVICE WASH - 23.7.20 PF18 JOV JFC15117,12/08/2020,0000458056,65.00,Revenue,NAYLORS TRANSPORT (LEYLAND) ltd,00114828
South Ribble Council,http://statistics.data.gov.uk/doc/local-authority/30UN,Area 2 - Waste Transport/Eastern & Central Teams,External Contractors Charges,4570,SERVICE WASH 29.7.20 - VO65KRD JFC15118,12/08/2020,0000458056,65.00,Revenue,NAYLORS TRANSPORT (LEYLAND) ltd,00114828
South Ribble Council,http://statistics.data.gov.uk/doc/local-authority/30UN,Area 2 - Waste Transport/Eastern & Central Teams,External Contractors Charges,4570,MOT WASH 7.7.20 - VU60 HLE JFC15119,12/08/2020,0000458057,75.00,Revenue,NAYLORS TRANSPORT (LEYLAND) ltd,00114828
South Ribble Council,http://statistics.data.gov.uk/doc/local-authority/30UN,Area 2 - Waste Transport/Eastern & Central Teams,External Contractors Charges,4570,SERVICE WASH 8.7.20 - YD19ATY JFC15120,12/08/2020,0000458057,65.00,Revenue,NAYLORS TRANSPORT (LEYLAND) ltd,00114828
South Ribble Council,http://statistics.data.gov.uk/doc/local-authority/30UN,Area 2 - Waste Transport/Eastern & Central Teams,External Contractors Charges,4570,SERVICE WASH 9.7.20 - YA19NGN JFC15121,12/08/2020,0000458057,65.00,Revenue,NAYLORS TRANSPORT (LEYLAND) ltd,00114828
South Ribble Council,http://statistics.data.gov.uk/doc/local-authority/30UN,Area 2 - Waste Transport/Eastern & Central Teams,External Contractors Charges,4570,SERVICE WASH 15.7.20 - YA19NJZ JFC15122,12/08/2020,0000458057,65.00,Revenue,NAYLORS TRANSPORT (LEYLAND) ltd,00114828
South Ribble Council,http://statistics.data.gov.uk/doc/local-authority/30UN,Area 2 - Waste Transport/Eastern & Central Teams,External Contractors Charges,4570,SERVICE WASH 16.7.20 - YA19 NKD JFC15123,12/08/2020,0000458057,65.00,Revenue,NAYLORS TRANSPORT (LEYLAND) ltd,00114828
South Ribble Council,http://statistics.data.gov.uk/doc/local-authority/30UN,Area 2 - Waste Transport/Eastern & Central Teams,External Contractors Charges,4570,MOT WASH 17.7.20 - VU58 JXK JFC15124,12/08/2020,0000458057,75.00,Revenue,NAYLORS TRANSPORT (LEYLAND) ltd,00114828
South Ribble Council,http://statistics.data.gov.uk/doc/local-authority/30UN,Area 2 - Waste Transport/Eastern & Central Teams,External Contractors Charges,4570,SERVICE WASH 22.7.20 - VU11 HSZ JFC15125,12/08/2020,0000458057,65.00,Revenue,NAYLORS TRANSPORT (LEYLAND) ltd,00114828
South Ribble Council,http://statistics.data.gov.uk/doc/local-authority/30UN,Area 2 - Waste Transport/Eastern & Central Teams,External Contractors Charges,4570,MOT WASH 30.7.20 - YE19 JPW JFC15126,12/08/2020,0000458057,75.00,Revenue,NAYLORS TRANSPORT (LEYLAND) ltd,00114828
South Ribble Council,http://statistics.data.gov.uk/doc/local-authority/30UN,Area 2 - Waste Transport/Eastern & Central Teams,External Contractors Charges,4570,SERVICE WASH 30.7.20 YD19ATZ JFC15127,12/08/2020,0000458057,65.00,Revenue,NAYLORS TRANSPORT (LEYLAND) ltd,00114828
South Ribble Council,http://statistics.data.gov.uk/doc/local-authority/30UN,Area 2 - Waste Transport/Eastern & Central Teams,Contract Hire & Lease Costs,3212,Hire of bin wagon VO61 YVE On hire 22.7.20 - 31.7.20 10 days @ 100 per day,19/08/2020,0000458212,"1,000.00",Revenue,NAYLORS TRANSPORT (LEYLAND) ltd,00114828
South Ribble Council,http://statistics.data.gov.uk/doc/local-authority/30UN,Development Enterprise & Comm Mgnt,Other Misc,485K,Print-Magazines NW Display Ads Half page vertical (agenda only) Jul20 Regional 1 No Preference ref 0000110635 as per NAME REDACTED,26/08/2020,0000457368,980.00,Revenue,NEWSCO INSIDER LTD,00011620
South Ribble Council,http://statistics.data.gov.uk/doc/local-authority/30UN,Property Services,Operational Furniture & Equip,4016,"Please supply as per NAME REDACTED as per the FRA,Evacuation Chair, Caretakers COSHH Cupboard, Evac Chairs, COSHH Cupboards",19/08/2020,0000458009,"5,800.00",Revenue,Northern Storage & Interiors Ltd,132814
South Ribble Council,http://statistics.data.gov.uk/doc/local-authority/30UN,Property Services,Operational Furniture & Equip,4017,Please supply and deliver chairs as detailed below 9500BLK/R500 Ergo comfort steel base black fabric x 24 0270 Ergo comfort arms x10,28/08/2020,0000458473,"3,943.00",Revenue,Northern Storage & Interiors Ltd,132814
South Ribble Council,http://statistics.data.gov.uk/doc/local-authority/30UN,Area 1 - Penwortham Western Parishes,Professional Fees,4514,Deployment of officers July 2020,19/08/2020,0000458051,"1,610.79",Revenue,NSL LTD,00116868
South Ribble Council,http://statistics.data.gov.uk/doc/local-authority/30UN,Area 1 - Penwortham Western Parishes,Other Misc,4855,Cash collection and ringo charges - July 2020,19/08/2020,0000458051,363.22,Revenue,NSL LTD,00116868
South Ribble Council,http://statistics.data.gov.uk/doc/local-authority/30UN,Area 1 - Penwortham Western Parishes,Other Misc,4855,Ringo convenience charge- July 2020,19/08/2020,0000458051,199.62,Revenue,NSL LTD,00116868
South Ribble Council,http://statistics.data.gov.uk/doc/local-authority/30UN,Area 1 - Penwortham Western Parishes,Professional Fees,4526,PRICE PER CONTRACTED ITEMISED COLLECTION,19/08/2020,0000458051,40.62,Revenue,NSL LTD,00116868
South Ribble Council,http://statistics.data.gov.uk/doc/local-authority/30UN,Information Services,Peripherals,4246,"Annual maintenance renewal on DR equipment for period 01/06/20 - 31/05/21, as per quote",12/08/2020,0000458031,"3,777.84",Revenue,Park Place Technologies Ltd,132573
South Ribble Council,http://statistics.data.gov.uk/doc/local-authority/30UN,Property Services,Rep & Maint Premises,2020,"Prepare ceiling where water damaged, rear office and entrance, prepare and fill where required, apply 2 coats of zin bin stain block and 2 coat",05/08/2020,0000457962,460.00,Revenue,PDP PROPERTY SERVICES LTD,00106975
South Ribble Council,http://statistics.data.gov.uk/doc/local-authority/30UN,Property Services,Rep & Maint Premises,2020,Please carry out works To supply and install a suspended ceiling at ADDRESS REDACTED As per NAME REDACTED request 380.,05/08/2020,0000457963,380.00,Revenue,PDP PROPERTY SERVICES LTD,00106975
South Ribble Council,http://statistics.data.gov.uk/doc/local-authority/30UN,Property Services,Rep & Maint Premises,2020,Remove bricks from chimney re-fix quarter brick to end wall clean rear gutter out and cut back tree remove quarry tiles to window cill in entranc,28/08/2020,0000458426,340.00,Revenue,PDP PROPERTY SERVICES LTD,00106975
South Ribble Council,http://statistics.data.gov.uk/doc/local-authority/30UN,Property Services,Rep & Maint Premises,2020,Remove existing plasterboard to joint-supply and fix new plasterboard-skim and fix new skirting board-fully decorate wall and new skirting,26/08/2020,0000458427,530.00,Revenue,PDP PROPERTY SERVICES LTD,00106975
South Ribble Council,http://statistics.data.gov.uk/doc/local-authority/30UN,Area 2 - Waste Transport/Eastern & Central Teams,Printing,4127,SUPPLY & DELIVERY OF GARDEN WASTE PERMITS AS PER QUOTE 23.8.19 TO COVER JAN TO DEC 2020,05/08/2020,0000457976,"4,213.25",Revenue,Permiserv Ltd,132447
South Ribble Council,http://statistics.data.gov.uk/doc/local-authority/30UN,HR & Communications,Employee Related Insurance,1819,REMAINDER - GROUP LIFE ASSURANCE SHCEME (8519) APRIL 2020 - MARCH 2021,05/08/2020,0000457996,"5,071.84",Revenue,PHOENIX LIFE LTD,00031532
South Ribble Council,http://statistics.data.gov.uk/doc/local-authority/30UN,Planning,Agency Fees,1121,Providing Temporary Planning Enforcement Services,19/08/2020,0000458253,"1,463.00",Revenue,Planning Control & PACE Solutions,133164
South Ribble Council,http://statistics.data.gov.uk/doc/local-authority/30UN,Planning,Operational Furniture & Equip,4010,Renewal of subscription to Planning Jungle,26/08/2020,0000458372,300.00,Revenue,PLANNING JUNGLE LIMITED,130938
South Ribble Council,http://statistics.data.gov.uk/doc/local-authority/30UN,Area 3 - Parks/Leyland East West,Capital Expenditure,C230,"Refurbishment of Seven Stars Playground, Leyland",14/08/2020,0000457644,"172,375.00",Revenue,PLAY & LEISURE LTD,00032188
South Ribble Council,http://statistics.data.gov.uk/doc/local-authority/30UN,Area 3 - Parks/Leyland East West,Grounds Maint Cntrctrs Chgs,4657,"Works to re-edge and re-surface northern link path, Seven Stars Green, Leyland",07/08/2020,0000457648,"2,092.00",Revenue,PLAY & LEISURE LTD,00032188
South Ribble Council,http://statistics.data.gov.uk/doc/local-authority/30UN,Area 3 - Parks/Leyland East West,Capital Expenditure,C230,"REFURBISHMENT OF LEADALE GREEN, PLAYGROUND",26/08/2020,0000457995,"2,625.00",Revenue,PLAY & LEISURE LTD,00032188
South Ribble Council,http://statistics.data.gov.uk/doc/local-authority/30UN,Chief Executive`s Management,Other Misc,4851,"SOUTH RIBBLE COUNCIL FACE MASK SIGNS: 1 PACK - (MALE), (FEMALE), (30 EACH OF BOTH KINDS, ARTWORK SUPPLIED: ",07/08/2020,0000457923,545.64,Revenue,Poppy Signs Ltd,131670
South Ribble Council,http://statistics.data.gov.uk/doc/local-authority/30UN,Property Services,Licence Fees,4883,2020 / 2021 music licence fees for the banqueting suite at the Civic Centre,26/08/2020,0000458384,209.65,Revenue,PPL PRS,132554
South Ribble Council,http://statistics.data.gov.uk/doc/local-authority/30UN,Property Services,Licence Fees,4883,"2020 / 2021 music licence fees for Leyland Market, Northcote Street, Leyland",26/08/2020,0000458384,885.20,Revenue,PPL PRS,132554
South Ribble Council,http://statistics.data.gov.uk/doc/local-authority/30UN,Information Services,Fixtures and Fittings,2611, 2 x 5103SSMFEH   Ergonomic Chair 3L Lumbar Pump Seat Slide Mem Foam High Gas lift in Havana,26/08/2020,0000458423,318.00,Revenue,PREMIER OFFICE SUPPLES (UK) LTD,00090159
South Ribble Council,http://statistics.data.gov.uk/doc/local-authority/30UN,Information Services,Stationery,4133,"50,000 sheets Evolution Everyday A4 80gm 15,000 sheets Evolution Business A4 90gm 5000 sheets Evolution Everyday  A3 80gm",07/08/2020,0000458034,452.05,Revenue,PREMIER PAPER GROUP LTD,00022606
South Ribble Council,http://statistics.data.gov.uk/doc/local-authority/30UN,Area 2 - Waste Transport/Eastern & Central Teams,External Contractors Charges,4570,Repair and replacement tyres - TR222,07/08/2020,0000457961,719.10,Revenue,PRESTON TYRE SPECIALISTS,00109516
South Ribble Council,http://statistics.data.gov.uk/doc/local-authority/30UN,Area 2 - Waste Transport/Eastern & Central Teams,External Contractors Charges,4570,repair and replacement tyres - TR223,26/08/2020,0000458373,405.50,Revenue,PRESTON TYRE SPECIALISTS,00109516
South Ribble Council,http://statistics.data.gov.uk/doc/local-authority/30UN,Democratic Services,Salaries - Basic,1101,ANNUAL CANVAS STAGE 1 DELIVERY (JOB REF 7289 (MAILING RATHER THAT HAND DELIVERY DUE TO COVID-19),14/08/2020,0000457986,"15,886.40",Revenue,PRINT IMAGE FACILITIES LLP,130734
South Ribble Council,http://statistics.data.gov.uk/doc/local-authority/30UN,Property Services,Rep & Maint Premises,2020,"AREA 1 - MAIN OFFICES, 23 no Cord window restrictors as required. To Replace Broken Window with a Toughened 28 mm Double glazed unit.",05/08/2020,0000457958,"1,130.00",Revenue,PSR & Sons Joiners & Building Contractors,132887
South Ribble Council,http://statistics.data.gov.uk/doc/local-authority/30UN,Property Services,Rep & Maint Premises,2020,AREA 3 - CONFERENCE ROOM To Replace Broken Glass using 6.4 mm clear Laminated fixed in the door accordingly. ,05/08/2020,0000457958,70.00,Revenue,PSR & Sons Joiners & Building Contractors,132887
South Ribble Council,http://statistics.data.gov.uk/doc/local-authority/30UN,Property Services,Rep & Maint Premises,2020,LABOUR,05/08/2020,0000457958,233.00,Revenue,PSR & Sons Joiners & Building Contractors,132887
South Ribble Council,http://statistics.data.gov.uk/doc/local-authority/30UN,Property Services,Rep & Maint Premises,2020,"4TH AUG 20 Replacement floor within the ground workers shed, at MSD. REF:TO OVER BOARD EXISTNG MEZZAMINE FLOOR. Put in place a",26/08/2020,0000458334,"3,000.00",Revenue,PSR & Sons Joiners & Building Contractors,132887
South Ribble Council,http://statistics.data.gov.uk/doc/local-authority/30UN,Property Services,Rep & Maint Premises,2020,,26/08/2020,0000458334,170.00,Revenue,PSR & Sons Joiners & Building Contractors,132887
South Ribble Council,http://statistics.data.gov.uk/doc/local-authority/30UN,Property Services,Rep & Maint Premises,2020,"Works as per NAME REDACTED, REMEDIAL WORKS TO LEYLAND MARKET, INSTALL NEW PANIC Put in place any signage or barriers ",26/08/2020,0000458335,240.00,Revenue,PSR & Sons Joiners & Building Contractors,132887
South Ribble Council,http://statistics.data.gov.uk/doc/local-authority/30UN,Property Services,Rep & Maint Premises,2020,LABOUR,26/08/2020,0000458335,20.00,Revenue,PSR & Sons Joiners & Building Contractors,132887
South Ribble Council,http://statistics.data.gov.uk/doc/local-authority/30UN,Regeneration,Capital Expenditure,C230,Please undertake the ``Worden hall refurbishment project part to RIBA stage 3``,12/08/2020,0000458089,"2,000.00",Revenue,Purcell Architecture Limited,132602
South Ribble Council,http://statistics.data.gov.uk/doc/local-authority/30UN,Information Services,Postage,4292,"Franking funds, meter reset & Royal Mail underpayment charges 20/07/20 - 10/08/20",28/08/2020,0000458465,"9,091.98",Revenue,Purchase Power,00093923
South Ribble Council,http://statistics.data.gov.uk/doc/local-authority/30UN,Property Services,Rep & Maint Premises,2020,Please carry out works as per NAME REDACTED  to jet out and clear all the road gully�s at boxer place 450,26/08/2020,0000458344,200.00,Revenue,RED ROSE BUILDING MAINTENANCE,00085410
South Ribble Council,http://statistics.data.gov.uk/doc/local-authority/30UN,Property Services,Rep & Maint Premises,2020,MATERIALS,26/08/2020,0000458344,250.00,Revenue,RED ROSE BUILDING MAINTENANCE,00085410
South Ribble Council,http://statistics.data.gov.uk/doc/local-authority/30UN,Homelessness,Contributions,4730,Agreed 4 weeks rent in advance for NAME REDACTED,12/08/2020,0000458132,400.00,Revenue,REDDY & CO,00108177
South Ribble Council,http://statistics.data.gov.uk/doc/local-authority/30UN,Legal,Legal,4821,PROFESSIONAL ADVICE IN RELATION TO INVESTIGATION OF EMPLOYMENT MATTER - APRIL 2020 ONWARDS,12/08/2020,0000457994,"9,750.00",Revenue,RICHARD PENN CONSULTANCY,133008
South Ribble Council,http://statistics.data.gov.uk/doc/local-authority/30UN,Legal,Legal,4821,travel & subsistence,12/08/2020,0000457994,663.55,Revenue,RICHARD PENN CONSULTANCY,133008
South Ribble Council,http://statistics.data.gov.uk/doc/local-authority/30UN,Information Services,Office Machines Maintenance,4026,1/8/20 to 31/10/2020,26/08/2020,0000458404,"5,851.63",Revenue,RICOH (UK) LTD,00082976
South Ribble Council,http://statistics.data.gov.uk/doc/local-authority/30UN,Area 3 - Parks/Leyland East West,Materials General,4040,R9 Grass Seed (20kg),26/08/2020,0000458299,269.85,Revenue,RIGBY TAYLOR LTD,00033145
South Ribble Council,http://statistics.data.gov.uk/doc/local-authority/30UN,Area 3 - Parks/Leyland East West,Materials General,4040,Autumn Green BIO 3-0-12,26/08/2020,0000458299,399.80,Revenue,RIGBY TAYLOR LTD,00033145
South Ribble Council,http://statistics.data.gov.uk/doc/local-authority/30UN,Neighbourhood Admin & Support,Operational Furniture & Equip,4010,Bag Hoops BO5DL110,12/08/2020,0000458032,270.00,Revenue,ROBERT ACTON PRODUCTS DEVELOPMENTS,00014452
South Ribble Council,http://statistics.data.gov.uk/doc/local-authority/30UN,Area 3 - Parks/Leyland East West,External Contractors Charges,4570,Tree works at Moss Lane Primary School Leyland as per your quotation 1127 dated 26.6.20,14/08/2020,0000458133,"2,280.00",Revenue,RUSS ASPINALL T/A BEARDWOOD TREE SERVICE,00120443
South Ribble Council,http://statistics.data.gov.uk/doc/local-authority/30UN,Property Services,Capital Expenditure,C230,"Costs relating to McKenzie Arms Site Investigation 3,890 Noise Impact 1,685 Air Quality 1,465 M&E Envision 7,100 Tree Survey 458.85",07/08/2020,0000457653,"7,041.00",Revenue,Sanderson Weatherall LLP,132534
South Ribble Council,http://statistics.data.gov.uk/doc/local-authority/30UN,Property Services,Capital Expenditure,C230,"Costs relating to McKenzie Arms Site Investigation 3,890 Noise Impact 1,685 Air Quality 1,465 M&E Envision 7,100 Tree Survey 458.86",07/08/2020,0000457654,458.85,Revenue,Sanderson Weatherall LLP,132534
South Ribble Council,http://statistics.data.gov.uk/doc/local-authority/30UN,Development Enterprise & Comm Mgnt,Consultancy Fees,4536,R & M for 2020/2021,07/08/2020,0000457829,"29,603.00",Revenue,SERCO LEISURE (OP) LTD,00094906
South Ribble Council,http://statistics.data.gov.uk/doc/local-authority/30UN,Development Enterprise & Comm Mgnt,Consultancy Fees,4536,R & M for 2020/2021,07/08/2020,0000457993,"14,801.50",Revenue,SERCO LEISURE (OP) LTD,00094906
South Ribble Council,http://statistics.data.gov.uk/doc/local-authority/30UN,Information Services,Professional Fees,4520,Shredding of Confidential Waste 2020/21,12/08/2020,0000457997,963.36,Revenue,SHRED-IT LTD,00109134
South Ribble Council,http://statistics.data.gov.uk/doc/local-authority/30UN,Information Services,Professional Fees,4520,Shredding of Confidential Waste 2020/21,12/08/2020,0000458076,494.64,Revenue,SHRED-IT LTD,00109134
South Ribble Council,http://statistics.data.gov.uk/doc/local-authority/30UN,Information Services,Professional Fees,4520,Shredding of Confidential Waste 2020/21,19/08/2020,0000458238,479.57,Revenue,SHRED-IT LTD,00109134
South Ribble Council,http://statistics.data.gov.uk/doc/local-authority/30UN,Information Services,Professional Fees,4520,Shredding of Confidential Waste 2020/21,28/08/2020,0000458467,479.57,Revenue,SHRED-IT LTD,00109134
South Ribble Council,http://statistics.data.gov.uk/doc/local-authority/30UN,Customer Contact,Clothing- Uniforms & Laundry,4410,"Long Sleeve Blouses 4 x Size 12, 8 x size 14, 1 x Size 10, 2 x Size 8 Short sleeve 3 x Size 14, 1 size 12 Mens Long Sleeve 5 x 14.5 5 x 16.5",14/08/2020,0000457118,459.60,Revenue,SMART IMAGE WORKWEAR,00031503
South Ribble Council,http://statistics.data.gov.uk/doc/local-authority/30UN,Neighbourhood Admin & Support,Clothing- Uniforms & Laundry,4410,NAVY SWEATSHIRT C/E SRBC  LOGO SSUC203 - SIZE LARGE,21/08/2020,0000458038,17.64,Revenue,SMART IMAGE WORKWEAR,00031503
South Ribble Council,http://statistics.data.gov.uk/doc/local-authority/30UN,Neighbourhood Admin & Support,Clothing- Uniforms & Laundry,4410,DISPOSABLE SUITS - DB3M4515 - SIZE EXTRA LARGE,21/08/2020,0000458038,264.00,Revenue,SMART IMAGE WORKWEAR,00031503
South Ribble Council,http://statistics.data.gov.uk/doc/local-authority/30UN,Neighbourhood Admin & Support,Clothing- Uniforms & Laundry,4410,DISPOSABLE SUITS - DB3M4515 - SIZE  LARGE,21/08/2020,0000458038,132.00,Revenue,SMART IMAGE WORKWEAR,00031503
South Ribble Council,http://statistics.data.gov.uk/doc/local-authority/30UN,Democratic Services,Repair Costs,4059,"60 x Laminated Floor Arrows Yellow, 15 x Laminated Floor Arrows (Right), 10 x Laminated Floor Arrows (Forward & Right), 4 x Rolls Floor Tape",28/08/2020,0000458314,444.60,Revenue,SMART IMAGE WORKWEAR,00031503
South Ribble Council,http://statistics.data.gov.uk/doc/local-authority/30UN,Homelessness,Contractors Charges 5,5311,Smithy lodge room placements 4 rooms  19/7/20 - 25/7/20 26/7/20 - 1/8/20 14 nights 50 pn x 4,12/08/2020,0000458005,"1,400.00",Revenue,SMITHY LODGE GUEST HOUSE,130562
South Ribble Council,http://statistics.data.gov.uk/doc/local-authority/30UN,Homelessness,Contractors Charges 5,5311,Smithy lodge room placements 4 rooms  19/7/20 - 25/7/20 26/7/20 - 1/8/20 14 nights 50 pn x 4,12/08/2020,0000458006,"1,400.00",Revenue,SMITHY LODGE GUEST HOUSE,130562
South Ribble Council,http://statistics.data.gov.uk/doc/local-authority/30UN,Homelessness,Contractors Charges 5,5311,SRBC placements Smithy lodge 21/6/20-27/6/20 28/6/20-4/7/20 5/7/2020-11/7/20 12/7/20-12/7/20 4 rooms,26/08/2020,0000458327,"1,400.00",Revenue,SMITHY LODGE GUEST HOUSE,130562
South Ribble Council,http://statistics.data.gov.uk/doc/local-authority/30UN,Homelessness,Contractors Charges 5,5311,SRBC placements Smithy lodge 21/6/20-27/6/20 28/6/20-4/7/20 5/7/2020-11/7/20 12/7/20-12/7/20 4 rooms,26/08/2020,0000458328,"1,400.00",Revenue,SMITHY LODGE GUEST HOUSE,130562
South Ribble Council,http://statistics.data.gov.uk/doc/local-authority/30UN,Homelessness,Contractors Charges 5,5311,SRBC placements Smithy lodge 21/6/20-27/6/20 28/6/20-4/7/20 5/7/2020-11/7/20 12/7/20-12/7/20 4 rooms,26/08/2020,0000458329,"1,400.00",Revenue,SMITHY LODGE GUEST HOUSE,130562
South Ribble Council,http://statistics.data.gov.uk/doc/local-authority/30UN,Homelessness,Contractors Charges 5,5311,SRBC placements Smithy lodge 21/6/20-27/6/20 28/6/20-4/7/20 5/7/2020-11/7/20 12/7/20-12/7/20 4 rooms,26/08/2020,0000458330,"1,400.00",Revenue,SMITHY LODGE GUEST HOUSE,130562
South Ribble Council,http://statistics.data.gov.uk/doc/local-authority/30UN,Homelessness,Contractors Charges 5,5311,SRBC placements 4 rooms as agreed 2/8/20 - 8/8/20 9/8/20 - 15/8/20 50 per room per night 14 nights,26/08/2020,0000458342,"1,400.00",Revenue,SMITHY LODGE GUEST HOUSE,130562
South Ribble Council,http://statistics.data.gov.uk/doc/local-authority/30UN,Homelessness,Contractors Charges 5,5311,SRBC placements 4 rooms as agreed 2/8/20 - 8/8/20 9/8/20 - 15/8/20 50 per room per night 14 nights,26/08/2020,0000458343,"1,400.00",Revenue,SMITHY LODGE GUEST HOUSE,130562
South Ribble Council,http://statistics.data.gov.uk/doc/local-authority/30UN,Development Enterprise & Comm Mgnt,Consultancy Fees,4532,Leisure Services Fee 2020/2021,07/08/2020,0000457801,"49,560.18",Revenue,SOUTH RIBBLE COMMUNITY LEISURE LTD,00094210
South Ribble Council,http://statistics.data.gov.uk/doc/local-authority/30UN,Shared Financial Services,Balance Sheet,0030,monthly deds from payroll,28/08/2020,0000458189,"1,486.62",Revenue,SOUTH RIBBLE LABOUR PARTY LOCAL GOVERNM,00120663
South Ribble Council,http://statistics.data.gov.uk/doc/local-authority/30UN,Area 2 - Waste Transport/Eastern & Central Teams,Materials General,4040,3 x cutting cylinders,19/08/2020,0000458181,554.25,Revenue,SPALDINGS,00070849
South Ribble Council,http://statistics.data.gov.uk/doc/local-authority/30UN,Area 2 - Waste Transport/Eastern & Central Teams,Materials General,4040,10 x adjustors cyclinder-  BIN1111,12/08/2020,0000458182,295.00,Revenue,SPALDINGS,00070849
South Ribble Council,http://statistics.data.gov.uk/doc/local-authority/30UN,Area 2 - Waste Transport/Eastern & Central Teams,Materials General,4040,1  x fuel tank JFC14620,12/08/2020,0000458141,270.61,Revenue,SPECTRUM PLANT LTD,130851
South Ribble Council,http://statistics.data.gov.uk/doc/local-authority/30UN,Shared Financial Services,Balance Sheet,0030,Monthly Deductions from Payroll,14/08/2020,0000458186,429.66,Revenue,ST CATHERINES HOSPICE PROMOTIONS LTD,00057749
South Ribble Council,http://statistics.data.gov.uk/doc/local-authority/30UN,Neighbourhood Admin & Support,Vehicle Running Costs,3132,16000 litres diesel @ 90.04 ppl into the feeder tank at Unit 81 Bison Place Moss Side-key available from the main office TELEPHONE REDACTED,12/08/2020,0000458122,"14,509.05",Revenue,Standard Fuel Oils LtdMain,131556
South Ribble Council,http://statistics.data.gov.uk/doc/local-authority/30UN,Neighbourhood Admin & Support,Vehicle Running Costs,3134,2500 litres Gas Oil @44.18ppl into tank 2,26/08/2020,0000458377,"1,051.48",Revenue,Standard Fuel Oils LtdMain,131556
South Ribble Council,http://statistics.data.gov.uk/doc/local-authority/30UN,Neighbourhood Admin & Support,Vehicle Running Costs,3132,16000 litres diesel @ 89.69 ppl into the feeder tank at Unit 81 Bison Place Moss Side - key available from main office TELEPHONE REDACTED,26/08/2020,0000458381,"14,404.21",Revenue,Standard Fuel Oils LtdMain,131556
South Ribble Council,http://statistics.data.gov.uk/doc/local-authority/30UN,Property Services,Professional Fees,4510,Consultancy fees for South Ribble Borough Councils Town deal,07/08/2020,0000457916,"8,900.00",Revenue,Steer Davies & Gleave Ltd,132998
South Ribble Council,http://statistics.data.gov.uk/doc/local-authority/30UN,Development Enterprise & Comm Mgnt,Other Misc,485K,Artwork design for Soft Touch Monolith Stand (1200MM x 2300MM) and fabric counter (800 x 530mm) with updated Apprentice Factory design,26/08/2020,0000454338,"4,308.99",Revenue,STONE CREATE LTD,130896
South Ribble Council,http://statistics.data.gov.uk/doc/local-authority/30UN,Area 2 - Waste Transport/Eastern & Central Teams,Materials General,4040,1 x sensor VO65KPz JFC14994,05/08/2020,0000457830,298.11,Revenue,Taylor Enginering & Fabrications Ltd,132560
South Ribble Council,http://statistics.data.gov.uk/doc/local-authority/30UN,Area 2 - Waste Transport/Eastern & Central Teams,Materials General,4040,1 x safety arm assembly VU11HSZ JFC15089,07/08/2020,0000457982,389.00,Revenue,Taylor Enginering & Fabrications Ltd,132560
South Ribble Council,http://statistics.data.gov.uk/doc/local-authority/30UN,Area 2 - Waste Transport/Eastern & Central Teams,Materials General,4040,1 x safety arm VU11 HSZ JFC15089,07/08/2020,0000457982,75.00,Revenue,Taylor Enginering & Fabrications Ltd,132560
South Ribble Council,http://statistics.data.gov.uk/doc/local-authority/30UN,Area 2 - Waste Transport/Eastern & Central Teams,Materials General,4040,CARRIAGE,07/08/2020,0000457982,15.50,Revenue,Taylor Enginering & Fabrications Ltd,132560
South Ribble Council,http://statistics.data.gov.uk/doc/local-authority/30UN,Area 2 - Waste Transport/Eastern & Central Teams,Materials General,4040,1 sensor VO65 KPZ JFC15072,05/08/2020,0000457983,289.16,Revenue,Taylor Enginering & Fabrications Ltd,132560
South Ribble Council,http://statistics.data.gov.uk/doc/local-authority/30UN,Area 2 - Waste Transport/Eastern & Central Teams,External Contractors Charges,4570,RBT / H / LAMP TESTER - Ref 381314,07/08/2020,0000457811,448.00,Revenue,Tecalemit Garage Equipment Company Limited,132135
South Ribble Council,http://statistics.data.gov.uk/doc/local-authority/30UN,Information Services,Peripherals,4246,22 Consultancy Days as per quote TALSRBCQ010,05/08/2020,0000457915,"9,000.00",Revenue,TechAlign,132535
South Ribble Council,http://statistics.data.gov.uk/doc/local-authority/30UN,Area 2 - Waste Transport/Eastern & Central Teams,External Contractors Charges,4570,1 SPEC REPAIR VO65 KPY JFC14369,07/08/2020,0000454337,"2,297.73",Revenue,TERBERG MATEC UK LTD,00058625
South Ribble Council,http://statistics.data.gov.uk/doc/local-authority/30UN,Regeneration,Other Misc,4851,The organisation and delivery of Living Room Live 2020 over the weekend of 10 and 11 July,12/08/2020,0000458135,500.00,Revenue,The Creative Network,130566
South Ribble Council,http://statistics.data.gov.uk/doc/local-authority/30UN,Legal,Publications,4142,match aagainst credit,12/08/2020,0000458145,965.00,Revenue,THOMSON REUTERS,00034979
South Ribble Council,http://statistics.data.gov.uk/doc/local-authority/30UN,Information Services,Publications,4142,R53,19/08/2020,0000458275,132.50,Revenue,THOMSON REUTERS,00034979
South Ribble Council,http://statistics.data.gov.uk/doc/local-authority/30UN,Information Services,Publications,4142,non vat,19/08/2020,0000458275,132.50,Revenue,THOMSON REUTERS,00034979
South Ribble Council,http://statistics.data.gov.uk/doc/local-authority/30UN,Property Services,Energy Costs,2304,30/4/20 to 31/7/20,07/08/2020,0000457999,448.15,Revenue,Total Gas & power Ltd,132995
South Ribble Council,http://statistics.data.gov.uk/doc/local-authority/30UN,Property Services,Energy Costs,2304,30/6/20 to 31/7/20,19/08/2020,0000458096,472.65,Revenue,Total Gas & power Ltd,132995
South Ribble Council,http://statistics.data.gov.uk/doc/local-authority/30UN,Property Services,Energy Costs,2307,CCL,19/08/2020,0000458096,45.37,Revenue,Total Gas & power Ltd,132995
South Ribble Council,http://statistics.data.gov.uk/doc/local-authority/30UN,Property Services,Energy Costs,2304,30/4/20 to 31/5/20,21/08/2020,0000458097,254.41,Revenue,Total Gas & power Ltd,132995
South Ribble Council,http://statistics.data.gov.uk/doc/local-authority/30UN,Property Services,Energy Costs,2307,31/5/20 to 31/7/20,21/08/2020,0000458097,450.62,Revenue,Total Gas & power Ltd,132995
South Ribble Council,http://statistics.data.gov.uk/doc/local-authority/30UN,Property Services,Energy Costs,2304,charge,21/08/2020,0000458097,347.76,Revenue,Total Gas & power Ltd,132995
South Ribble Council,http://statistics.data.gov.uk/doc/local-authority/30UN,Property Services,Energy Costs,2307,CCL,21/08/2020,0000458097,89.98,Revenue,Total Gas & power Ltd,132995
South Ribble Council,http://statistics.data.gov.uk/doc/local-authority/30UN,Property Services,Energy Costs,2303,1/7/20 to 31/7/20,21/08/2020,0000458105,"2,769.35",Revenue,Total Gas & power Ltd,132995
South Ribble Council,http://statistics.data.gov.uk/doc/local-authority/30UN,Property Services,Energy Costs,2307,CCL,21/08/2020,0000458105,148.54,Revenue,Total Gas & power Ltd,132995
South Ribble Council,http://statistics.data.gov.uk/doc/local-authority/30UN,Property Services,Energy Costs,2303,1/7/20 to 30/7/20,21/08/2020,0000458108,"1,205.13",Revenue,Total Gas & power Ltd,132995
South Ribble Council,http://statistics.data.gov.uk/doc/local-authority/30UN,Property Services,Energy Costs,2307,CCL,21/08/2020,0000458108,57.29,Revenue,Total Gas & power Ltd,132995
South Ribble Council,http://statistics.data.gov.uk/doc/local-authority/30UN,Property Services,Energy Costs,2303,4/5/20 to 3/8/20,21/08/2020,0000458110,297.25,Revenue,Total Gas & power Ltd,132995
South Ribble Council,http://statistics.data.gov.uk/doc/local-authority/30UN,Property Services,Energy Costs,2303,1/7/20 to 31/7/20,21/08/2020,0000458112,430.81,Revenue,Total Gas & power Ltd,132995
South Ribble Council,http://statistics.data.gov.uk/doc/local-authority/30UN,Property Services,Energy Costs,2307,CCL,21/08/2020,0000458112,17.95,Revenue,Total Gas & power Ltd,132995
South Ribble Council,http://statistics.data.gov.uk/doc/local-authority/30UN,Property Services,Energy Costs,2303,4/5/20 to 3/8/20,21/08/2020,0000458113,661.11,Revenue,Total Gas & power Ltd,132995
South Ribble Council,http://statistics.data.gov.uk/doc/local-authority/30UN,Property Services,Energy Costs,2307,CCL,21/08/2020,0000458113,32.78,Revenue,Total Gas & power Ltd,132995
South Ribble Council,http://statistics.data.gov.uk/doc/local-authority/30UN,Property Services,Energy Costs,2303,1/7/20 to 31/7/20,21/08/2020,0000458120,"2,059.29",Revenue,Total Gas & power Ltd,132995
South Ribble Council,http://statistics.data.gov.uk/doc/local-authority/30UN,Property Services,Energy Costs,2307,CCL,21/08/2020,0000458120,114.54,Revenue,Total Gas & power Ltd,132995
South Ribble Council,http://statistics.data.gov.uk/doc/local-authority/30UN,Property Services,Energy Costs,2304,31/5/20 to 31/7/20,19/08/2020,0000458154,250.36,Revenue,Total Gas & power Ltd,132995
South Ribble Council,http://statistics.data.gov.uk/doc/local-authority/30UN,Property Services,Operational Furniture & Equip,4013,2020 / 2021 contract number 05473 for the maintenance of the refrigeration units at the Civic Centre,05/08/2020,0000457938,"1,260.00",Revenue,UNIVERSAL COOLING LTD,130914
South Ribble Council,http://statistics.data.gov.uk/doc/local-authority/30UN,Property Services,Rep & Maint Premises,2020,Annual Contract for Maintenance 2020 - 2021 Contract  Number 05487 dated 10.03.2020 Civic Centre,05/08/2020,0000457939,"2,312.00",Revenue,UNIVERSAL COOLING LTD,130914
South Ribble Council,http://statistics.data.gov.uk/doc/local-authority/30UN,Planning,Other Misc,4851,2020-331 South Ribble Workshop MQ attendance 3/2/20,19/08/2020,0000457805,630.00,Revenue,UNIVERSITY OF STIRLING,133165
South Ribble Council,http://statistics.data.gov.uk/doc/local-authority/30UN,Planning,Other Misc,4851,expenses,19/08/2020,0000457805,66.90,Revenue,UNIVERSITY OF STIRLING,133165
South Ribble Council,http://statistics.data.gov.uk/doc/local-authority/30UN,Property Services,Operational Furniture & Equip,4012,2020 / 2021 annual contract for the monthly rental of hot drinks machines at the civic centre including environmental charge.,07/08/2020,0000457967,372.89,Revenue,VENDING ENTERPRISES,00101501
South Ribble Council,http://statistics.data.gov.uk/doc/local-authority/30UN,Property Services,Agency Fees,1121,Estates Surveyor consultancy fees for NAME REDACTED from 1st July 2020 for a period of 4 months 4 days per week,12/08/2020,0000458084,"1,526.84",Revenue,Vivid Resourcing,132999
South Ribble Council,http://statistics.data.gov.uk/doc/local-authority/30UN,Property Services,Agency Fees,1121,Estates Surveyor consultancy fees for NAME REDACTED from 1st July 2020 for a period of 4 months 4 days per week,19/08/2020,0000458216,"1,780.66",Revenue,Vivid Resourcing,132999
South Ribble Council,http://statistics.data.gov.uk/doc/local-authority/30UN,Property Services,Agency Fees,1121,Estates Surveyor consultancy fees for NAME REDACTED from 1st July 2020 for a period of 4 months 4 days per week,26/08/2020,0000458337,"1,613.08",Revenue,Vivid Resourcing,132999
South Ribble Council,http://statistics.data.gov.uk/doc/local-authority/30UN,Property Services,Agency Fees,1121,Estates Surveyor consultancy fees for NAME REDACTED from 1st July 2020 for a period of 4 months 4 days per week,28/08/2020,0000458474,"1,833.58",Revenue,Vivid Resourcing,132999
South Ribble Council,http://statistics.data.gov.uk/doc/local-authority/30UN,Information Services,Peripherals,4247,01 AUG 2020,12/08/2020,0000458142,"2,404.20",Revenue,VODAFONE RE:CABLE & WIRELESS UK,130810
South Ribble Council,http://statistics.data.gov.uk/doc/local-authority/30UN,Area 3 - Parks/Leyland East West,Grounds Maint Cntrctrs Chgs,4657,20x Aluminium & Vinyl overplay playground signs,12/08/2020,0000458072,"3,500.00",Revenue,WOODSTOCK SIGNS,00039039
South Ribble Council,http://statistics.data.gov.uk/doc/local-authority/30UN,Planning,Professional Fees,4510,This is a new commission for Central and West Lancs Rail Study,19/08/2020,0000458085,"5,370.00",Revenue,WSP UK Ltd,132833
South Ribble Council,http://statistics.data.gov.uk/doc/local-authority/30UN,Area 2 - Waste Transport/Eastern & Central Teams,Materials General,4040, 1 x pck 25  W15 D30 Pipe and fastening clamp,05/08/2020,0000458016,23.82,Revenue,WURTH UK LTD,00069106
South Ribble Council,http://statistics.data.gov.uk/doc/local-authority/30UN,Area 2 - Waste Transport/Eastern & Central Teams,Materials General,4040,1 x pck 25 W15-D18 pipe and fastening clamp,05/08/2020,0000458016,21.14,Revenue,WURTH UK LTD,00069106
South Ribble Council,http://statistics.data.gov.uk/doc/local-authority/30UN,Area 2 - Waste Transport/Eastern & Central Teams,Operational Furniture & Equip,4010,5 x D10 5MM- Twist drill HSS DIN 338 type RN,05/08/2020,0000458016,20.60,Revenue,WURTH UK LTD,00069106
South Ribble Council,http://statistics.data.gov.uk/doc/local-authority/30UN,Area 2 - Waste Transport/Eastern & Central Teams,Operational Furniture & Equip,4010,"5 x D8, 5MM - twist drill HSS DIN 338 type RN",05/08/2020,0000458016,13.35,Revenue,WURTH UK LTD,00069106
South Ribble Council,http://statistics.data.gov.uk/doc/local-authority/30UN,Area 2 - Waste Transport/Eastern & Central Teams,Operational Furniture & Equip,4010,"10  x D5, 0MM - Twist drill HSS DIN 338 type RN",05/08/2020,0000458016,14.70,Revenue,WURTH UK LTD,00069106
South Ribble Council,http://statistics.data.gov.uk/doc/local-authority/30UN,Area 2 - Waste Transport/Eastern & Central Teams,Operational Furniture & Equip,4010,"5 x D8, 0MM - Twist drill HSS DIN type RN",05/08/2020,0000458016,11.30,Revenue,WURTH UK LTD,00069106
South Ribble Council,http://statistics.data.gov.uk/doc/local-authority/30UN,Area 2 - Waste Transport/Eastern & Central Teams,Operational Furniture & Equip,4010,"5 x D6, 5MM - Twist drill HSS DIN 338 type RN",05/08/2020,0000458016,9.60,Revenue,WURTH UK LTD,00069106
South Ribble Council,http://statistics.data.gov.uk/doc/local-authority/30UN,Area 2 - Waste Transport/Eastern & Central Teams,Operational Furniture & Equip,4010,"10 x D4, 5MM twist drill HSS DIN 338 type RN",05/08/2020,0000458016,12.60,Revenue,WURTH UK LTD,00069106
South Ribble Council,http://statistics.data.gov.uk/doc/local-authority/30UN,Area 2 - Waste Transport/Eastern & Central Teams,Materials General,4040,2 x 300ML sealant remover,05/08/2020,0000458016,15.00,Revenue,WURTH UK LTD,00069106
South Ribble Council,http://statistics.data.gov.uk/doc/local-authority/30UN,Area 2 - Waste Transport/Eastern & Central Teams,Materials General,4040,1 x pack of 25  static mixing tube adhesives,05/08/2020,0000458016,21.25,Revenue,WURTH UK LTD,00069106
South Ribble Council,http://statistics.data.gov.uk/doc/local-authority/30UN,Area 2 - Waste Transport/Eastern & Central Teams,Materials General,4040,1 x pack of 10 electric insulating tape,05/08/2020,0000458016,14.10,Revenue,WURTH UK LTD,00069106
South Ribble Council,http://statistics.data.gov.uk/doc/local-authority/30UN,Area 2 - Waste Transport/Eastern & Central Teams,Materials General,4040,1 x pack of 25 M6X1 steel zinc grease nipples BIN 179,05/08/2020,0000458016,10.27,Revenue,WURTH UK LTD,00069106
South Ribble Council,http://statistics.data.gov.uk/doc/local-authority/30UN,Area 2 - Waste Transport/Eastern & Central Teams,Materials General,4040,1  x pack of 100 M10X1 steel zinc grease nipples BIN179,05/08/2020,0000458016,26.60,Revenue,WURTH UK LTD,00069106
South Ribble Council,http://statistics.data.gov.uk/doc/local-authority/30UN,Area 2 - Waste Transport/Eastern & Central Teams,Materials General,4040,1 x pack of 25 M10X1 steel zinc grease nipples BIN 179,05/08/2020,0000458016,12.55,Revenue,WURTH UK LTD,00069106
South Ribble Council,http://statistics.data.gov.uk/doc/local-authority/30UN,Area 2 - Waste Transport/Eastern & Central Teams,Materials General,4040,1 x pack of 25 M8X1 steel zinc grease nipples- BIN 179,05/08/2020,0000458016,11.41,Revenue,WURTH UK LTD,00069106
South Ribble Council,http://statistics.data.gov.uk/doc/local-authority/30UN,Area 2 - Waste Transport/Eastern & Central Teams,Materials General,4040,3 x plastic adhesive replast easy superfast - BIN 179,05/08/2020,0000458016,37.47,Revenue,WURTH UK LTD,00069106
South Ribble Council,http://statistics.data.gov.uk/doc/local-authority/30UN,Information Services,Peripherals,4241,"1 x P57750dw (includes 3 Yr Onsite warranty) 575.00, 1 x A4MFD box drop delivery",26/08/2020,0000458408,585.00,Revenue,XERETEC OFFICE SYSTEMS LTD,00109325
